Cogmind - Beta 16.1 @@@ ROGUE MODE // 2026.03.03 @ 22:19:28 Player: obl-vn Result: Destroyed by SK-OAY(R) with Subdweller Laser Performance ------------- Evolutions (0) 0 Regions Visited (2) 400 Robots Destroyed (24) 120 Value Destroyed (510) 510 Prototype IDs (0) 0 Alien Tech Used (0) 0 Bonus (0) 0 TOTAL SCORE: 1030 Bonus ------- None Cogmind --------- Core Integrity 0/250 Matter 39/300 Energy 96/100 System Corruption 0% Temperature Cool (8) Movement Treading (160) Location -10/Subcaves Parts ------- > --- POWER (1) -------- (None) > --- PROPULSION (2) --- Light Treads Light Treads > --- UTILITY (2) ------ Large Storage Unit Targeting Computer > --- WEAPON (2) ------- Slug Cannon > --- INVENTORY (15) --- Improved Treads Improved Treads Improved Treads Improved Treads Large Matter Pod (0) Large Matter Pod (0) Large Matter Pod (0) Large Matter Pod (0) Large Matter Pod (0) Large Matter Pod (0) Seismic Detector Light Cannon Improved Light Cannon Improved Light Cannon Peak State ------------ > --- POWER ------------ (None) > --- PROPULSION ------- Light Treads Light Treads > --- UTILITY ---------- Large Storage Unit Targeting Computer > --- WEAPON ----------- Improved Light Cannon Slug Cannon > --- INVENTORY -------- Improved Treads Improved Treads Improved Treads Improved Treads Large Matter Pod Large Matter Pod Large Matter Pod Large Matter Pod Large Matter Pod Large Matter Pod Seismic Detector Light Cannon Improved Light Cannon Improved Light Cannon Improved Light Cannon [Rating: 12] Favorites ----------- Power Light Ion Engine Engine Light Ion Engine Propulsion Light Treads Treads Light Treads Utility Targeting Computer Device Seismic Detector Storage Large Storage Unit Processor Targeting Computer Weapon Improved Light Cannon Energy Gun Medium Laser Ballistic Cannon Improved Light Cannon Build | -11 -10 -10 ------- Run | Yrd Mat Sub Slots Evolved . | . . . Power . | . . . Propulsion . | . . . Utility . | . . . Weapon . | . . . Parts Attached 19 | 7 10 2 Power 2 | 1 1 . Engine 2 | 1 1 . Core . | . . . Reactor . | . . . Propulsion 5 | 2 2 1 Treads 5 | 2 2 1 Leg . | . . . Wheel . | . . . Hover . | . . . Flight . | . . . Utility 6 | 2 4 . Device 1 | 1 . . Storage 4 | 1 3 . Processor 1 | . 1 . Hackware . | . . . Protection . | . . . Artifact . | . . . Weapon 6 | 2 3 1 Energy Gun 2 | 2 . . Energy Cannon . | . . . Ballistic Gun . | . . . Ballistic Cannon 4 | . 3 1 Launcher . | . . . Special Weapon . | . . . Impact Weapon . | . . . Slashing Weapon . | . . . Piercing Weapon . | . . . Special Melee Weapon . | . . . Unidentified Prototypes . | . . . Parts Lost 4 | . . 4 Power 1 | . . 1 Propulsion 1 | . . 1 Utility . | . . . Weapon 2 | . . 2 Highest Loss Streak 2 | . . 2 To Critical Strikes . | . . . Average Backups 10 | 2 9 14 Power . | . . . Propulsion 4 | 1 4 4 Utility 3 | . 2 7 Weapon 2 | . 2 3 Tool/Special . | . . . Unused Backups 13 | . 3 10 Power 1 | . 1 . Propulsion 4 | . 2 2 Utility 6 | . . 6 Weapon 2 | . . 2 Tool/Special . | . . . Average Slot Usage (%) 98 | . 99 92 Engine 12 | . 14 7 Treads 27 | . 27 28 Device 4 | . 5 . Storage 14 | . 14 14 Processor 9 | . 8 14 Ballistic Cannon 26 | . 26 27 Peak Build Rating 12 | 7 11 12 Average Rating 9 | 5 9 10 On Entrance 6 | . 7 11 Avg Prop Armor Cover (%) . | . . . Naked Turns . | . . . Heaviest Build 31 | 12 31 31 Greatest Support 40 | 40 40 40 Greatest Overweight (x) . | . . . Average Overweight (x) . | . . . Largest Inventory Capacity 25 | 8 25 15 Average Capacity 11 | 6 10 15 Most Carried 15 | 4 15 15 Average Carried 10 | 2 9 14 Final Capacity 15 | 8 15 15 Final Carried 15 | 3 15 14 Class Distribution -------------------- 100% | Mutant Dominant Class ---------------- Mutant | -10/Materials Mutant | -10/Subcaves Resources | -11 -10 -10 ----------- Run | Yrd Mat Sub Matter Collected 833 | 270 377 186 Remotely . | . . . Salvage Created 463 | 122 256 85 Parts 41 | 9 24 8 Haulers Intercepted 2 | . 2 . Recyclers Shooed 1 | 1 . . Parts Field Recycled . | . . . Retrieved Matter . | . . . Parts Self-Destructed 9 | . . 9 Prevented . | . . . Parts Restored . | . . . Kills | -11 -10 -10 ------- Run | Yrd Mat Sub Combat Hostiles Destroyed 16 | . 10 6 Cannons 16 | . 10 6 Classes Destroyed 8 | 2 5 1 Builder 1 | . 1 . Tunneler 2 | 2 . . Hauler 2 | . 2 . Recycler 1 | 1 . . Watcher 2 | . 2 . Swarmer 6 | . 6 . Grunt 4 | . 4 . Subdweller 6 | . . 6 Best Kill Streak 4 | 3 4 2 Combat Bots Only 3 | . 3 2 Max Kills in Single Turn 1 | 1 1 1 Gunslinging . | . . . Exploded . | . . . Melee . | . . . Uniques/NPCs Destroyed . | . . . Combat | -11 -10 -10 -------- Run | Yrd Mat Sub Hostile Shots Fired 97 | . 41 56 Missed 27 | . 11 16 Hits 70 | . 30 40 Projectile 70 | . 30 40 Damage Taken 1210 | . 291 919 Core 262 | . 41 221 Absorbed by Shields . | . . . Regen/Repaired (Parts) 193 | . 193 . Core Remaining (%) 100 | 100 . . Volleys Fired 92 | 4 50 38 Largest 2 | 2 2 2 Hottest 90 | 90 66 73 Shots Fired 163 | 8 84 71 Gun 8 | 8 . . Cannon 155 | . 84 71 Launcher . | . . . Special . | . . . Kinetic 155 | . 84 71 Thermal 8 | 8 . . Explosive . | . . . Electromagnetic . | . . . Robot Hit Streak 20 | 5 10 20 Robot Miss Streak 6 | 1 6 3 Penetration Max . | . . . Secondary Targets . | . . . Shots Hit Robots 97 | 6 31 60 Core Hits 31 | 4 15 12 Critical Kills . | . . . Critical Parts Destroyed 1 | . . 1 Critical Strikes 6 | 1 1 4 Burn 1 | 1 . . Destroy 3 | . . 3 Blast 2 | . 1 1 Melee Attacks . | . . . Impact . | . . . Slashing . | . . . Piercing . | . . . Sneak Attacks . | . . . Combat Hostiles . | . . . Follow-up Attacks . | . . . Damage Inflicted 1934 | 73 708 1153 Guns 73 | 73 . . Cannons 1861 | . 708 1153 Explosions . | . . . Melee . | . . . Ramming . | . . . Kinetic 1861 | . 708 1153 Thermal 73 | 73 . . Explosive . | . . . Electromagnetic . | . . . Impact . | . . . Slashing . | . . . Piercing . | . . . Highest Corruption . | . . . Average Corruption . | . . . Corruption Purged . | . . . Corruption Blocked . | . . . Overload Shots . | . . . Overflow Damage 17 | . 17 . Projectiles 17 | . 17 . Explosions . | . . . Melee . | . . . Knockbacks 17 | . 6 11 Impact . | . . . Kinetic 17 | . 6 11 Secondary . | . . . Self-Inflicted Damage . | . . . Shots . | . . . Rammed . | . . . Targets Rammed . | . . . Kicked . | . . . Crushed . | . . . Highest Temperature 90 | 90 54 . Average Temperature 19 | 40 16 . Received Heat Transfer 186 | . 78 108 Siege Activations . | . . . Martial Activations . | . . . Shielding Activations . | . . . Robots Disrupted . | . . . Combat Hostiles . | . . . Robots Corrupted . | . . . Combat Hostiles . | . . . Parts Fried . | . . . Impact Corruptions . | . . . Robots Melted . | . . . Combat Hostiles . | . . . Parts Melted 1 | 1 . . Heat Transferred 260 | 260 . . Parts Sabotaged . | . . . Parts Stolen . | . . . Parts Stripped . | . . . Power Chain Reactions . | . . . Alert | -11 -10 -10 ------- Run | Yrd Mat Sub Maximum Alert Level . | . . . Low Security (%) 100 | 100 100 . Level 1 . | . . . Level 2 . | . . . Level 3 . | . . . Level 4 . | . . . Level 5 . | . . . High Security . | . . . Max Security . | . . . Peak Influence 113 | 10 113 . Initial . | . . . Average 29 | 1 31 . Influence Increases 322 | 15 307 . Destroy 0b10 Robot/C 200 | . 200 . Destroy 0b10 Robot/NC 40 | 15 25 . Destroy Leader 48 | . 48 . Successful Hack 23 | . 23 . Destroy Structure 11 | . 11 . Influence Decreases 322 | 15 273 34 Entered New Map 17 | . . 17 Time Decay 305 | 15 273 17 Squads Dispatched 1 | . 1 . Investigation . | . . . Extermination . | . . . Reinforcement 1 | . 1 . Assault . | . . . Garrison . | . . . Intercept . | . . . Searches Triggered . | . . . Construction Impeded . | . . . Haulers Reinforced . | . . . Active Scanning Responses . | . . . Cargo Convoy Interrupts . | . . . Stealth | -11 -10 -10 --------- Run | Yrd Mat Sub Distress Signals 1 | . 1 . Communications Jammed . | . . . Distress Signals . | . . . Times Spotted 27 | . 18 9 Peak Tracking Total 3 | . 3 3 Tactical Retreats . | . . . Traps | -11 -10 -10 ------- Run | Yrd Mat Sub Traps Triggered 2 | . 1 1 Indirectly . | . . . Trap Hack Attempts . | . . . Triggered . | . . . Disarmed . | . . . Reprogrammed . | . . . Reused . | . . . Traps Extracted . | . . . Installed . | . . . Triggered . | . . . Machines | -11 -10 -10 ---------- Run | Yrd Mat Sub Machines Disabled . | . . . Max in Single Turn . | . . . Machines Repaired . | . . . Machines Dismantled . | . . . Machines Sabotaged . | . . . Overloaded Fab Kills . | . . . Hacking | -11 -10 -10 --------- Run | Yrd Mat Sub Machines Accessed 7 | . 7 . Terminals 6 | . 6 . Fabricators . | . . . Repair Stations 1 | . 1 . Recycling Units . | . . . Scanalyzers . | . . . Garrison Access . | . . . Total Hacks 26 | . 26 . Successful 15 | . 15 . Failed 11 | . 11 . Catastrophic . | . . . Database Lockouts . | . . . Manual 15 | . 15 . Terminals 20 | . 20 . Fabricators . | . . . Repair Stations 6 | . 6 . Recycling Units . | . . . Scanalyzers . | . . . Garrison Access . | . . . Terminal Hacks 3 | . 3 . Robot Analysis 2 | . 2 . Locate Traps 1 | . 1 . Fabricator Hacks . | . . . Repair Station Hacks 6 | . 6 . Scan Component 3 | . 3 . Repair 3 | . 3 . Recycling Unit Hacks . | . . . Scanalyzer . | . . . Garrison Access Hacks . | . . . Unauthorized Hacks 6 | . 6 . Terminals 6 | . 6 . Botnet 1 | . 1 . Skim 5 | . 5 . Fabricators . | . . . Repair Stations . | . . . Recycling Units . | . . . Scanalyzers . | . . . Garrison Access . | . . . Data Cores Recovered . | . . . Used . | . . . Hacking Detections 6 | . 6 . Full Trace Events . | . . . Feedback Events . | . . . Feedback Blocked . | . . . Robot Schematics Acquired . | . . . Robots Built . | . . . Authchips . | . . . Time . | . . . Total Robot Build Rating . | . . . Part Schematics Acquired . | . . . Parts Built . | . . . Authchips . | . . . Time . | . . . Total Part Build Rating . | . . . Part Studies Acquired . | . . . Parts Repaired 3 | . 3 . Time 90 | . 90 . Parts Recycled . | . . . Recycled Matter . | . . . Retrieved Matter . | . . . Retrieved Components . | . . . Parts Scanalyzed . | . . . Part Schematics Acquired . | . . . Parts Damaged . | . . . Bothacking | -11 -10 -10 ------------ Run | Yrd Mat Sub Used RIF Installer . | . . . Robots Hacked . | . . . Non-combat . | . . . Combat . | . . . Robot Hacks Applied . | . . . Relay Couplers Released . | . . . Fabnet Peak Effective % . | . . . Robots Rewired . | . . . Allies Hacked . | . . . Hacks Repelled . | . . . Allies | -11 -10 -10 -------- Run | Yrd Mat Sub Total Allies . | . . . Largest Group . | . . . Highest-Rated Group . | . . . Highest-Rated Ally . | . . . Total Orders . | . . . Ally Attacks . | . . . Total Damage . | . . . Kills . | . . . Allies Corrupted . | . . . Allies Melted . | . . . Intel | -11 -10 -10 ------- Run | Yrd Mat Sub Active Infowar (turns) 678 | 41 637 . Seismic 678 | 41 637 . Robot Analysis Total 2 | . 2 . Derelict Logs Recovered 1 | . . 1 Drone Launches . | . . . Drone Recoveries . | . . . Exploration | -11 -10 -10 ------------- Run | Yrd Mat Sub Turns Passed 2301 | 136 1776 389 Spaces Moved 1078 | 76 848 154 Core 22 | 22 . . Treads 1056 | 54 848 154 Legs . | . . . Wheels . | . . . Hover . | . . . Flight . | . . . Fastest Speed 50 | 50 160 160 Average Speed 157 | 128 160 160 Slowest Speed 160 | 160 160 160 Overloaded Moves . | . . . Propulsion Burnouts . | . . . Robots Hopped . | . . . Potential Cave-ins . | . . . Cave-ins Triggered . | . . . Exploration Rate (%) 37 | 4 93 16 Regions Visited 2 Branch Regions 1 Pre-discovered Areas 1 | . . 1 Known Exits Taken . | . . . Unknown Exits Taken 2 | 1 1 . Scrap Searched 1 | . . 1 Spaces Dug 2 | . 2 . Terrain Destroyed 14 | . 9 5 Melee . | . . . Projectile 14 | . 9 5 AOE . | . . . Terrain Rammed . | . . . Walls Destroyed . | . . . Machines Disabled . | . . . Actions | -11 -10 -10 --------- Run | Yrd Mat Sub Total 1519 | 107 1186 226 Wait 277 | 11 236 30 Move 1076 | 75 847 154 Hop . | . . . Pick Up 34 | 10 23 1 Fast Attach 3 | . 3 . Attach 12 | 7 3 2 Detach . | . . . Swap 11 | . 10 1 Drop 14 | . 14 . Fire 92 | 4 50 38 Melee . | . . . Ram . | . . . Kick . | . . . Crush . | . . . Escape Stasis . | . . . Rewire . | . . . Trap . | . . . Miscellaneous . | . . . Route ------- -11/Scrapyard -10/Materials (discovered 6 exits: [*Mat x3] / [*Min x2] / [*Sub]) -10/Subcaves (discovered 2 exits: Mat x2) History --------- Turn | Location | Event 5 | -11/Scrapyard | Discovered new exit (range 15) 137 | -11/Scrapyard | Entered Materials 318 | -10/Materials | Build established: Mutant 582 | -10/Materials | Discovered new exit (range 15) 715 | -10/Materials | Discovered new exit (range 3) 972 | -10/Materials | Discovered new exit (range 7) 1067 | -10/Materials | Discovered new exit (range 16) 1144 | -10/Materials | Discovered new exit (range 10) 1430 | -10/Materials | Discovered new exit (range 6) 1623 | -10/Materials | Learned location of 3 exits from Materials 1689 | -10/Materials | Learned Storage stockpile data 1702 | -10/Materials | Repaired Imp. Light Cannon 1735 | -10/Materials | Repaired Imp. Light Cannon 1743 | -10/Materials | Learned 2 Storage zone layouts 1763 | -10/Materials | Repaired Lgt. Treads 1788 | -10/Materials | Learned 2 Mines zone layouts 1913 | -10/Materials | Entered Subcaves 1914 | -10/Subcaves | Approached by a straggling Scientist 1914 | -10/Subcaves | Identified exit to Materials 1926 | -10/Subcaves | Learned location of Storage (-9) 2101 | -10/Subcaves | Core integrity fell below 50% 2186 | -10/Subcaves | Core integrity fell below 20% 2302 | -10/Subcaves | Destroyed by SK-OAY(R) with Subdweller Laser Last Messages --------------- 02261_ 4P-YOO(R) knocked back. 02261_ 4P-YOO(R) destroyed. 02264_ Slug penetrates SK-OAY(R). 02264_ SK-OAY(R) knocked back. 02264_ Imp. Light Cannon destroyed. 02268_ SK-OAY(R) knocked back. FB-ZHD(c): "I think it's somewhere southwest of here" 02271_ SK-OAY(R) knocked back. 02274_ SK-OAY(R) suffers critical hit (Destroy). 02274_ Destroyed Sub. Power Source. 02278_ SK-OAY(R) affixes Scrap Shield Fragment to Scrap Shield. 02288_ Imp. Light Cannon destroyed. 02291_ Slug penetrates Wall. 02295_ SK-OAY(R) suffers critical hit (Destroy). 02295_ SK-OAY(R) knocked back. 02297_ Slug penetrates SK-OAY(R). 02297_ SK-OAY(R) suffers critical hit (Destroy). 02302_ Acquired 35 matter. Map ----- +----------------------------------------------------+ | ?# ##?????????????###?### ###""" #?????????????? | | ?# #???????????????????## " #?????????????? | | ?###???????????????????# #?????????????? | | ???????????????????????## " #?????????????? | | ??????????????????????## ##"" #?????????????? | | ???????????????????#### #####" #?????????????? | | ???????????????????# # ##???### ^#?????????????? | | ???????????????????## ##?##???# #?????????????? | | ???????????????????# # ## ### #?????????????? | | ???????????????????## #?????????????? | | ???????????????????## # ### #? #?????????????? | | ???????????????????# ####?????##?????????????? | | ???????????????????# #??????????????????????? | | ???????????????????# #??????????????????????? | | ???????????????????# ##??????????????????????? | | ???????????????????# #####???????????????????? | | ???????????????????## ##??????????????????? | | ????????????????????## c ##?????????????????? | | ?????????????????????## ##????????????????? | | ??????????????????????## #????????????????? | | ???????????????????????# % % #????????????????? | | ??????????????????????## "" #????????????????? | | ??????????????????????# ! * "##????????????????? | | ??????????????????????##;;! ###?????????????????? | | ???????????????????????##;!%;#??????????????????? | | ????????????????????????#@ %%#??????????????????? | | ????????????????????????#[ R"" #??????????????? | | ????????????????????????# "" "" #??????????????? | | ???????????????????????? """ "" #??????????????? | | ???????????????????????? " ""###??????????????? | | ??????????????????????? "#????????????????? | | ???????????????????????" ""????????????????? | | ???????????????????????""" ##????????????????? | | ??????????????????????""""""""#?????????????????? | | ???????????????????????"" ""????????????????????? | | ??????????????????????????"?????????????????????? | | ????????????????????????????????????????????????? | | ????????????????????????????????????????????????? | | ????????????????????????????????????????????????? | | ????????????????